bitfinex/quotes_BTCUSD_20251104
["timestamp","ask_amount","ask_price","bid_price","bid_amount"]
[1762279336182,0.61780247,101010.0,101000.0,27.68759449]
[1762279336381,3.78185755,101010.0,101000.0,26.92251785]
[1762279336520,3.71670801,101010.0,101000.0,26.92251785]
[1762279336746,3.71370801,101010.0,101000.0,26.64540393]
[1762279337093,0.58462019,101010.0,101000.0,26.64640393]
[1762279337275,0.62080247,101010.0,101000.0,26.64640393]
[1762279337534,0.75850019,101010.0,101000.0,26.64640393]
[1762279337676,0.41770019,101010.0,101000.0,26.64640393]
[1762279337878,0.2197,101010.0,101000.0,26.64640393]
[1762279338278,0.41770019,101010.0,101000.0,26.64640393]
[1762279338919,0.41170019,101010.0,101000.0,26.64540393]
[1762279339205,0.75670019,101010.0,101000.0,26.64640393]
[1762279339606,0.75170019,101010.0,101000.0,26.64540393]
[1762279339828,0.75470019,101010.0,101000.0,26.64640393]
[1762279340199,0.84038247,101010.0,101000.0,26.64640393]
[1762279340722,0.79137247,101010.0,101000.0,26.64640393]
[1762279341294,0.75470019,101010.0,101000.0,26.64640393]
[1762279342089,0.84039247,101010.0,101000.0,26.64640393]
[1762279342438,0.79088247,101010.0,101000.0,26.64640393]
[1762279342851,0.79088247,101010.0,101000.0,26.74075393]
[1762279343079,0.79088247,101010.0,101000.0,26.64640393]
[1762279343492,0.75470019,101010.0,101000.0,26.64640393]
[1762279343693,0.75519019,101010.0,101000.0,26.64640393]
[1762279344024,0.75470019,101010.0,101000.0,26.64640393]
[1762279344624,0.84038247,101010.0,101000.0,26.64640393]
[1762279344974,0.79137247,101010.0,101000.0,26.64640393]
[1762279345170,0.79088247,101010.0,101000.0,26.64640393]
[1762279345417,0.79088247,101010.0,101000.0,26.74075393]
[1762279345654,0.75470019,101010.0,101000.0,26.74075393]
[1762279346218,0.75470019,101010.0,101000.0,26.64640393]
[1762279347817,0.75470019,101010.0,101000.0,26.74075393]
[1762279348629,0.75470019,101010.0,101000.0,26.64540393]
[1762279348859,0.75170019,101010.0,101000.0,26.64540393]
[1762279349060,0.75175418,101010.0,101000.0,26.74075393]
[1762279349295,0.75175418,101010.0,101000.0,26.64640393]
[1762279349513,0.78842646,101010.0,101000.0,26.64640393]
[1762279349726,0.83743646,101010.0,101000.0,26.64640393]
[1762279350592,3.8760042,101010.0,101000.0,26.199976]
[1762279350802,3.92587423,101010.0,101000.0,25.87405414]
[1762279351001,3.8760042,101010.0,101000.0,25.87405414]
[1762279351126,0.92587423,101010.0,101000.0,25.87405414]
[1762279351323,3.8760042,101010.0,101000.0,25.87405414]
[1762279351532,0.8760042,101010.0,101000.0,25.87405414]
[1762279351739,3.8750042,101010.0,101000.0,25.87305414]
[1762279351953,3.92487423,101010.0,101000.0,25.87305414]
[1762279352213,3.8780042,101010.0,101000.0,25.87405414]
[1762279352372,3.8780042,101010.0,101000.0,25.42562203]
[1762279352577,3.8750042,101010.0,101000.0,25.42462203]
[1762279352774,3.8780042,101010.0,101000.0,25.42562203]
[1762279352979,3.89924335,101010.0,101000.0,24.97442037]
[1762279353162,3.89924316,101010.0,101000.0,24.71035033]
[1762279353577,3.94911319,101010.0,101000.0,24.71035033]
[1762279353793,3.89924316,101010.0,101000.0,24.26163374]
[1762279354137,3.92324316,101010.0,101000.0,24.26163374]
[1762279354427,3.92324316,101010.0,101000.0,23.80123551]
[1762279354626,3.92324316,101010.0,101000.0,23.55011835]
[1762279354828,3.91176162,101010.0,101000.0,23.55011835]
[1762279355243,3.91176162,101010.0,101000.0,23.54964575]
[1762279355867,3.96852165,101010.0,101000.0,23.54964575]
[1762279356054,3.91865162,101010.0,101000.0,23.08175152]
[1762279356270,3.91865162,101010.0,101000.0,22.83434689]
[1762279356455,3.94265162,101010.0,101000.0,22.59158124]
[1762279356633,3.94265162,101010.0,101000.0,22.32480601]
[1762279357038,3.94265162,101010.0,101000.0,22.04679584]
[1762279357239,3.94265162,101010.0,101000.0,21.78450097]
[1762279357421,3.95422272,101010.0,101000.0,21.56218075]
[1762279357612,3.94265162,101010.0,101000.0,21.29469909]
[1762279358049,3.94265162,101010.0,101000.0,21.07247804]
[1762279358229,3.94265162,101010.0,101000.0,20.85007366]
[1762279358656,3.94265162,101010.0,101000.0,20.4896344]
[1762279359181,3.88246934,101010.0,101000.0,20.4896344]
[1762279359427,3.94265162,101010.0,101000.0,20.03958911]
[1762279359585,3.94265162,101010.0,101000.0,19.82134781]
[1762279359786,3.95442676,101010.0,101000.0,19.82134781]
[1762279359997,3.95442676,101010.0,101000.0,19.53671562]
[1762279360738,3.95442676,101010.0,101000.0,19.03433838]
[1762279360950,4.07231479,101010.0,101000.0,18.61363189]
[1762279361092,4.0690028,101010.0,101000.0,18.61363189]
[1762279361494,4.0690028,101010.0,101000.0,18.34081401]
[1762279361696,3.95142676,101010.0,101000.0,18.0971119]
[1762279361921,3.95142676,101010.0,101000.0,17.85326927]
[1762279361922,3.96642675,101010.0,101000.0,17.85326927]
[1762279362118,3.96642675,101010.0,101000.0,17.64944159]
[1762279362320,3.97142674,101010.0,101000.0,17.46417911]
[1762279362525,3.98042674,101010.0,101000.0,17.2752958]
[1762279362720,3.97042675,101010.0,101000.0,16.90595106]
[1762279362920,4.06994116,101010.0,101000.0,16.72396786]
[1762279363199,4.06662917,101010.0,101000.0,16.4616349]
[1762279363405,4.06662917,101010.0,101000.0,16.27648441]
[1762279363604,4.06662917,101010.0,101000.0,16.07131532]
[1762279363825,4.08006314,101010.0,101000.0,15.61082876]
[1762279364021,3.97142674,101010.0,101000.0,15.61082876]
[1762279364340,3.97842674,101010.0,101000.0,15.61082876]
[1762279364559,3.91524448,101010.0,101000.0,15.61082876]
[1762279364757,3.92524447,101010.0,101000.0,15.61082876]
[1762279364956,3.63092448,101010.0,101000.0,15.61082876]
[1762279365784,4.06450053,101010.0,101000.0,15.61082876]
[1762279365987,4.01610674,101010.0,101000.0,15.61082876]
[1762279366163,4.01310675,101010.0,101000.0,15.61082876]
[1762279366369,4.02310674,101010.0,101000.0,15.61082876]
[1762279366759,4.00410675,101010.0,101000.0,15.61082876]
[1762279367174,3.98710676,101010.0,101000.0,15.61082876]
[1762279367629,3.99610676,101010.0,101000.0,15.61082876]
[1762279367814,3.98710676,101010.0,101000.0,15.61082876]
[1762279368197,3.99400676,101010.0,101000.0,15.61082876]
[1762279369195,4.00400675,101010.0,101000.0,15.61082876]
[1762279369577,4.01400674,101010.0,101000.0,15.15533523]
[1762279369752,4.1085828,101010.0,101000.0,15.15533523]
[1762279369890,4.1085828,101010.0,101000.0,14.76854341]
[1762279370094,4.1015828,101010.0,101000.0,14.57793045]
[1762279370398,4.2057828,101010.0,101000.0,13.95067805]
[1762279370642,4.21827418,101010.0,101000.0,13.47694714]
[1762279370853,4.2057828,101010.0,101000.0,13.47694714]
[1762279371027,4.2057828,101010.0,101000.0,13.25194379]
[1762279371229,4.2167828,101010.0,101000.0,12.83565871]
[1762279371548,4.07034385,101010.0,101000.0,12.83565871]
[1762279371710,4.11469014,101010.0,101000.0,12.83565871]
[1762279371911,4.11469014,101010.0,101000.0,11.74653093]
[1762279373157,4.10469015,101010.0,101000.0,11.74653093]
[1762279373331,4.11469014,101010.0,101000.0,11.74653093]
[1762279373530,4.10469015,101010.0,101000.0,11.74653093]
[1762279373840,4.11469014,101010.0,101000.0,11.74653093]
[1762279374262,4.01011409,101010.0,101000.0,11.74653093]
[1762279374485,4.02011408,101010.0,101000.0,11.74653093]
[1762279375454,4.02011408,101010.0,101000.0,11.15744747]
[1762279375842,3.62389182,101010.0,101000.0,11.15744747]
[1762279376246,3.67007409,101010.0,101000.0,11.15744747]
[1762279376461,3.6600741,101010.0,101000.0,11.15744747]
[1762279376584,3.6470741,101010.0,101000.0,11.15744747]
[1762279376783,3.6590741,101010.0,101000.0,11.15744747]
[1762279377017,3.9990741,101010.0,101000.0,11.15744747]
[1762279377297,3.9870741,101010.0,101000.0,11.15744747]
[1762279377510,4.00507409,101010.0,101000.0,11.15744747]
[1762279377816,4.01507408,101010.0,101000.0,11.15744747]
[1762279378025,4.10965014,101010.0,101000.0,11.15744747]
[1762279378239,4.10165014,101010.0,101000.0,11.15744747]
[1762279378689,4.11165014,101010.0,101000.0,11.15744747]
[1762279379741,4.00707408,101010.0,101000.0,11.15744747]
[1762279380207,4.00066098,101010.0,101000.0,11.15844747]
[1762279380919,4.00066098,101010.0,101000.0,10.69249247]
[1762279381143,4.00066098,101010.0,101000.0,10.46861529]
[1762279381542,4.00066098,101010.0,101000.0,9.8946022]
[1762279381755,4.09523704,101010.0,101000.0,9.8946022]
[1762279381964,4.09523704,101010.0,101000.0,9.64403163]
[1762279382205,4.10523703,101010.0,101000.0,8.0749799]
[1762279382416,4.10523703,101010.0,101000.0,7.85289085]
[1762279382626,4.1032147,101010.0,101000.0,7.85289085]
[1762279382814,4.10633193,101010.0,101000.0,7.85189085]
[1762279383035,4.06646189,101010.0,101000.0,7.85189085]
[1762279383311,4.12033193,101010.0,101000.0,7.85189085]
[1762279383490,4.11033194,101010.0,101000.0,7.85189085]
[1762279383901,3.64957359,101010.0,101000.0,7.85189085]
[1762279384121,3.62957361,101010.0,101000.0,7.85189085]
[1762279384291,3.66575589,101010.0,101000.0,7.85189085]
[1762279384493,3.64694627,101010.0,101000.0,7.85189085]
[1762279384719,3.70039116,101010.0,101000.0,7.85189085]
[1762279384925,3.72467614,101010.0,101000.0,7.78252639]
[1762279385132,4.06467614,101010.0,101000.0,7.78252639]
[1762279385312,4.11454617,101010.0,101000.0,7.78252639]
[1762279385506,4.0368163,101010.0,101000.0,7.78252639]
[1762279385692,4.02681631,101010.0,101000.0,7.78256639]
[1762279385887,3.63663403,101010.0,101000.0,7.78256639]
[1762279386128,3.62663404,101010.0,101000.0,7.78260639]
[1762279386331,3.63563404,101010.0,101000.0,7.78260639]
[1762279386683,3.63563404,101010.0,101000.0,7.78264639]
[1762279386964,3.60976401,101010.0,101000.0,7.78268639]
[1762279387179,3.94976401,101010.0,101000.0,7.78268639]
[1762279387408,3.60976401,101010.0,101000.0,7.78272639]
[1762279387609,3.60976401,101010.0,101000.0,7.78276639]
[1762279387744,3.60976401,101010.0,101000.0,7.78280639]
[1762279387950,3.94976401,101010.0,101000.0,7.78280639]
[1762279388152,3.94976401,101010.0,101000.0,7.78284639]
[1762279388365,4.08052235,101010.0,101000.0,7.78288639]
[1762279388565,4.10052233,101010.0,101000.0,7.78292639]
[1762279388748,4.10052233,101010.0,101000.0,7.22981169]
[1762279388955,4.16316239,101010.0,101000.0,6.65901564]
[1762279389152,4.10511781,101010.0,101000.0,5.98898096]
[1762279389414,4.10511781,101010.0,101000.0,4.54153831]
[1762279389415,4.15416239,101010.0,101000.0,4.54153831]
[1762279389622,4.16816239,101010.0,101000.0,4.00827309]
[1762279389833,4.09911783,101010.0,101000.0,4.00827309]
[1762279390039,4.15416239,101010.0,101000.0,3.75750059]
[1762279390208,4.17016239,101010.0,101000.0,3.55163709]
[1762279390408,4.17016239,101010.0,101000.0,3.30624144]
[1762279390610,4.17016239,101010.0,101000.0,3.10985467]
[1762279390817,1.21675647,101010.0,101000.0,2.74527965]
[1762279391041,4.2934703,101010.0,101000.0,1.61124328]
[1762279391218,4.22660728,101010.0,101000.0,1.30270102]
[1762279391425,4.26459143,101010.0,101000.0,1.01152438]
[1762279391623,4.2387214,101010.0,101000.0,1.01152438]
[1762279391829,4.20472141,101010.0,101000.0,0.98176744]
[1762279392060,4.1653765,101010.0,101000.0,0.51211751]
[1762279392262,4.119938,101010.0,101000.0,0.51211751]
[1762279392468,4.21961192,101010.0,101000.0,0.51211751]
[1762279392958,4.22087562,101010.0,101000.0,0.51211751]
[1762279393163,4.21087563,101010.0,101000.0,0.51211751]
[1762279393336,4.22087562,101010.0,101000.0,0.51211751]
[1762279393536,4.23087561,101010.0,101000.0,0.51211751]
[1762279393734,4.19469333,101010.0,101000.0,0.51211751]
[1762279394038,4.17469335,101010.0,101000.0,0.51211751]
[1762279394231,4.18469334,101010.0,101000.0,0.51205095]
[1762279394354,4.19469333,101010.0,101000.0,0.51205095]
[1762279394560,3.58203938,100990.0,100980.0,0.025747]
[1762279394776,3.80162281,100990.0,100980.0,1e-08]
[1762279394993,3.80162281,100990.0,100960.0,0.56384218]
[1762279394994,3.68043089,100970.0,100960.0,0.55493218]
[1762279395191,3.75525029,100970.0,100960.0,0.55493218]
[1762279395416,3.76496029,100970.0,100960.0,0.55493218]
[1762279395834,3.7549603,100970.0,100960.0,0.55493218]
[1762279396039,3.85953635,100970.0,100960.0,0.55493218]
[1762279396239,3.87153635,100970.0,100960.0,0.55493218]
[1762279396771,3.87153635,100970.0,100960.0,0.06521984]
[1762279398180,3.86953634,100970.0,100960.0,0.06521984]
[1762279398409,3.94474422,100970.0,100960.0,1e-08]
[1762279398541,3.88353634,100970.0,100960.0,1e-08]
[1762279398750,3.61828051,100960.0,100950.0,0.04010001]
[1762279398956,3.79237597,100960.0,100950.0,0.04010001]
[1762279399160,3.76837597,100960.0,100950.0,0.04010001]
[1762279399347,3.81076786,100960.0,100950.0,0.04010001]
[1762279399858,3.82276786,100960.0,100950.0,0.04110001]
[1762279400052,3.7191918,100960.0,100950.0,0.04110001]
[1762279401419,3.75406183,100960.0,100950.0,0.04110001]
[1762279401635,3.7041918,100960.0,100950.0,0.04110001]
[1762279401832,3.7281918,100960.0,100950.0,0.04235888]
[1762279402635,3.71819181,100960.0,100950.0,0.04235888]
[1762279402802,3.82276786,100960.0,100950.0,0.04235888]
[1762279403015,3.28250954,100960.0,100950.0,0.04235888]
[1762279403216,3.08441129,100960.0,100950.0,0.24230888]
[1762279403421,3.10529129,100960.0,100950.0,0.24230888]
[1762279403645,0.12929129,100960.0,100950.0,0.24230888]
[1762279403901,0.10529129,100960.0,100950.0,0.24230888]
[1762279404098,0.10529129,100960.0,100950.0,0.26655977]
[1762279404259,0.1046727,100960.0,100950.0,0.26655977]
[1762279404462,0.0926727,100960.0,100950.0,0.26555977]
[1762279404667,0.09867132,100960.0,100950.0,0.26655977]
[1762279404934,0.08027246,100960.0,100950.0,0.26655977]
[1762279405264,0.03539246,100960.0,100950.0,0.26655977]
[1762279405484,0.02939246,100960.0,100950.0,0.26555977]
[1762279406059,0.01204616,100960.0,100950.0,0.26659977]
[1762279406233,0.04018228,100960.0,100950.0,0.26659977]
[1762279406441,0.0253463,100960.0,100950.0,0.26659977]
[1762279406682,0.004,100960.0,100950.0,0.26663977]
[1762279406883,0.004,100960.0,100950.0,0.24242888]
[1762279406884,0.01204273,100960.0,100950.0,0.24242888]
[1762279407091,0.06957131,100960.0,100950.0,0.24246888]
[1762279407507,0.08396068,100960.0,100950.0,0.14194888]
[1762279407718,0.08396068,100960.0,100950.0,0.14198888]
[1762279407940,0.37515098,100960.0,100950.0,0.08105888]
[1762279408131,0.37815098,100960.0,100950.0,0.08205888]
[1762279408353,0.10796068,100960.0,100950.0,0.08105888]
[1762279408771,0.11296068,100960.0,100950.0,0.08205888]
[1762279409177,0.11296068,100960.0,100950.0,0.08105888]
[1762279409178,0.10796068,100960.0,100950.0,0.08105888]
[1762279409384,0.31505893,100960.0,100950.0,0.08205888]
[1762279409590,3.42743919,100960.0,100950.0,0.03255888]
[1762279409943,3.11696068,100960.0,100950.0,0.03255888]
[1762279410373,3.45696068,100960.0,100950.0,0.03255888]
[1762279410573,3.45696068,100960.0,100950.0,0.09248888]
[1762279410574,3.44796068,100960.0,100950.0,0.09248888]
[1762279410955,0.3987784,100960.0,100950.0,0.24250888]
[1762279411191,0.04038903,100960.0,100950.0,0.24250888]
[1762279411412,0.07657131,100960.0,100950.0,0.24250888]
[1762279412124,0.45895261,100960.0,100950.0,0.24250888]
[1762279412381,0.43495261,100960.0,100950.0,0.24250888]
[1762279412988,0.09495261,100960.0,100950.0,0.24250888]
[1762279413577,0.43495261,100960.0,100950.0,0.24250888]
[1762279413781,0.63305086,100960.0,100950.0,0.14298888]
[1762279413986,3.65705086,100960.0,100950.0,0.08205888]
[1762279414190,3.43495261,100960.0,100950.0,0.08205888]
[1762279414393,3.43495261,100960.0,100950.0,0.24448888]
[1762279414561,0.09495261,100960.0,100950.0,0.24348888]
[1762279414917,0.08395261,100960.0,100950.0,0.24348888]
[1762279415118,0.09195261,100960.0,100950.0,0.24348888]
[1762279415319,0.08395261,100960.0,100950.0,0.24348888]
[1762279415662,0.09195261,100960.0,100950.0,0.24348888]
[1762279415859,0.08395261,100960.0,100950.0,0.24348888]
[1762279416069,3.08395261,100960.0,100950.0,0.07670888]
[1762279416306,3.29005086,100960.0,100950.0,0.14227888]
[1762279416480,3.11595261,100960.0,100950.0,0.07670888]
[1762279416687,3.38942089,100960.0,100950.0,0.02155888]
[1762279416894,3.70355086,100960.0,100950.0,0.02155888]
[1762279417146,3.50545261,100960.0,100950.0,0.02155888]
[1762279417351,3.65405086,100960.0,100950.0,0.06670888]
[1762279417473,3.65405086,100960.0,100950.0,0.02155888]
[1762279417685,3.70355086,100960.0,100950.0,0.02155888]
[1762279417934,3.65405086,100960.0,100950.0,0.06670888]
[1762279418658,3.45595261,100960.0,100950.0,0.06670888]
[1762279418871,3.43195261,100960.0,100950.0,0.22913888]
[1762279419011,3.43195261,100960.0,100950.0,0.13227888]
[1762279419213,3.45595261,100960.0,100950.0,0.22913888]
[1762279419644,3.43195261,100960.0,100950.0,0.13227888]
[1762279419846,3.45595261,100960.0,100950.0,0.06670888]
[1762279420228,3.63005086,100960.0,100950.0,0.06670888]
[1762279420632,3.65405086,100960.0,100950.0,0.06670888]
[1762279420971,3.43195261,100960.0,100950.0,0.06670888]
[1762279421314,3.63005086,100960.0,100950.0,0.13227888]
[1762279421464,3.43195261,100960.0,100950.0,0.06670888]
[1762279421670,3.45595261,100960.0,100950.0,0.13227888]
[1762279421832,3.43195261,100960.0,100950.0,0.06670888]
[1762279422039,3.63005086,100960.0,100950.0,0.13227888]
[1762279422247,3.43195261,100960.0,100950.0,0.22913888]
[1762279423113,3.43195261,100960.0,100950.0,0.02155888]
[1762279423114,3.82399695,100960.0,100950.0,0.02155888]
[1762279423422,3.70355086,100960.0,100950.0,0.02155888]
[1762279424281,3.65454086,100960.0,100950.0,0.02155888]
[1762279424679,3.64654086,100960.0,100950.0,0.02155888]
[1762279424876,3.69555086,100960.0,100950.0,0.02155888]
[1762279425093,3.70555086,100960.0,100950.0,0.02155888]
[1762279425306,3.79012692,100960.0,100950.0,0.02155888]
[1762279425503,3.42395261,100960.0,100950.0,0.06670888]
[1762279425824,3.45595261,100960.0,100950.0,0.22913888]
[1762279426030,3.65405086,100960.0,100950.0,0.06670888]
[1762279426224,3.65503086,100960.0,100950.0,0.03135614]
[1762279426430,3.70356086,100960.0,100950.0,0.03135614]
[1762279426956,0.03618228,100930.0,100900.0,1.05154551]
[1762279427123,0.05752858,100930.0,100900.0,1.05154551]
[1762279427327,0.03618228,100930.0,100920.0,0.06557]
[1762279428157,0.03866855,100930.0,100920.0,0.06557]
[1762279428538,0.03666855,100930.0,100920.0,0.06557]
[1762279428769,0.04066855,100930.0,100920.0,0.072127]
[1762279429381,0.04066855,100930.0,100920.0,0.072167]
[1762279429590,0.00448627,100930.0,100920.0,0.85049571]
[1762279429793,0.04472,100970.0,100930.0,0.08688]
[1762279430014,0.04472,100970.0,100960.0,0.11072]
[1762279430015,0.09510626,100970.0,100960.0,0.11072]
[1762279430148,0.07110626,100970.0,100960.0,0.11072]
[1762279430357,0.11920626,100970.0,100960.0,0.04515]
[1762279430778,3.0,100960.0,100950.0,0.04515]
[1762279430984,0.34802748,100960.0,100950.0,0.04515]
[1762279431163,0.03618228,100940.0,100930.0,0.11831602]
[1762279432207,0.40242693,100940.0,100930.0,0.00014602]
[1762279432363,3.76842693,100940.0,100930.0,0.00014602]
[1762279432587,3.56828943,100940.0,100930.0,0.00014602]
[1762279432785,3.76642693,100940.0,100930.0,0.00014602]
[1762279433214,3.86100299,100940.0,100930.0,0.00014602]
[1762279434491,3.86500299,100940.0,100930.0,0.00114602]
[1762279434695,3.86100299,100940.0,100930.0,0.00014602]
[1762279435172,3.86700299,100940.0,100930.0,0.00114602]
[1762279435564,3.77242693,100940.0,100930.0,0.00114602]
[1762279436575,3.77242693,100940.0,100920.0,0.00028]
[1762279436576,0.57433941,100930.0,100920.0,0.00028]
[1762279436757,3.77974236,100930.0,100920.0,0.00028]
[1762279437295,3.80374236,100930.0,100920.0,0.00028]
[1762279437495,3.76906235,100930.0,100920.0,0.00028]
[1762279437676,3.60558523,100930.0,100920.0,0.00028]
[1762279438637,3.81374236,100930.0,100920.0,0.00128]
[1762279438952,0.34,100910.0,100890.0,0.18180845]
[1762279439069,0.03618228,100900.0,100890.0,0.20660772]
[1762279439273,0.03618228,100900.0,100890.0,0.11532772]
[1762279439493,0.03618228,100900.0,100890.0,0.17926772]
[1762279439694,0.03618228,100900.0,100890.0,0.18077965]
[1762279439899,0.04472,100910.0,100890.0,0.94526901]
[1762279440117,0.08090228,100910.0,100900.0,0.15522]
[1762279440295,0.08090228,100910.0,100900.0,0.24959571]
[1762279440690,0.08090228,100910.0,100900.0,0.92280507]
[1762279440691,0.04472,100910.0,100900.0,0.92280507]
[1762279440892,0.0493458,100930.0,100900.0,0.24959571]
[1762279441097,0.0493458,100930.0,100910.0,0.04821]
[1762279441098,0.73455718,100930.0,100910.0,0.04821]
[1762279441282,0.03618228,100920.0,100910.0,0.13949]
[1762279441713,0.03618228,100920.0,100910.0,0.04821]
[1762279441906,3.0,100910.0,100890.0,0.11519772]
[1762279442106,0.03618228,100900.0,100890.0,0.20647772]
[1762279442307,0.03618228,100900.0,100890.0,0.15433845]
[1762279442513,0.06018228,100900.0,100890.0,0.09039845]
[1762279442837,3.63418844,100900.0,100890.0,0.09039845]
[1762279443044,3.79900487,100900.0,100890.0,0.09039845]
[1762279443485,3.77313484,100900.0,100890.0,0.09039845]
[1762279443850,3.8677109,100900.0,100890.0,0.09039845]
[1762279444175,3.66949485,100900.0,100890.0,0.09039845]
[1762279444403,3.57991879,100900.0,100890.0,0.09039845]
[1762279444776,3.57991879,100900.0,100890.0,0.24561845]
[1762279444777,0.45802879,100900.0,100890.0,0.24561845]
[1762279444988,0.43691239,100900.0,100890.0,0.15433845]
[1762279445190,0.43691239,100900.0,100890.0,0.09039845]
[1762279445191,0.48569239,100900.0,100890.0,0.09039845]
[1762279445400,3.65050498,100900.0,100890.0,0.09039845]
[1762279445818,3.50789498,100900.0,100890.0,0.09191038]
[1762279446024,0.50789498,100900.0,100890.0,0.09191038]
[1762279446237,3.65049846,100900.0,100890.0,0.09191038]
[1762279446465,0.62462843,100900.0,100890.0,0.09191038]
[1762279446675,0.53079843,100900.0,100890.0,0.09191038]
[1762279446882,3.86583532,100900.0,100890.0,0.09191038]
[1762279447082,3.89784327,100900.0,100890.0,0.09191038]
[1762279447929,3.83085243,100900.0,100890.0,0.09191038]
[1762279448156,3.83085243,100900.0,100890.0,0.08691038]
[1762279448366,3.82585243,100900.0,100890.0,0.08691038]
[1762279448677,3.63463638,100900.0,100890.0,0.08691038]
[1762279448920,3.83285243,100900.0,100890.0,0.08691038]
[1762279449103,3.63463638,100900.0,100890.0,0.08691038]
[1762279449313,3.83285243,100900.0,100890.0,0.08691038]
[1762279449473,3.83285243,100900.0,100890.0,0.08591038]
[1762279450015,3.83285243,100900.0,100890.0,0.08491038]
[1762279450224,3.83285243,100900.0,100890.0,0.08391038]
[1762279450410,3.83275243,100900.0,100890.0,0.08291038]
[1762279450614,3.92732849,100900.0,100890.0,0.08191038]
[1762279450820,3.92732849,100900.0,100890.0,0.08091038]
[1762279451021,3.82575243,100900.0,100890.0,0.08091038]
[1762279451234,3.82575243,100900.0,100890.0,0.07991038]
[1762279451367,3.82575243,100900.0,100890.0,0.07891038]
[1762279451368,3.83575243,100900.0,100890.0,0.07891038]
[1762279451594,3.83575243,100900.0,100890.0,0.07791038]
[1762279451803,3.85413738,100900.0,100890.0,0.07691038]
[1762279452206,3.85413738,100900.0,100890.0,0.07591038]
[1762279452409,3.85413738,100900.0,100870.0,0.4915978]
[1762279452613,3.85413738,100900.0,100820.0,0.0002]
[1762279452614,0.37759228,100870.0,100790.0,0.024]
[1762279452823,0.37759228,100870.0,100790.0,0.023]
[1762279452824,0.03618228,100800.0,100790.0,0.023]
[1762279453484,0.22912231,100800.0,100790.0,0.023]
[1762279453720,0.37781048,100800.0,100790.0,0.023]
[1762279453936,0.22926782,100800.0,100790.0,0.018]
[1762279454167,0.00014551,100800.0,100790.0,0.17322]
[1762279454387,0.03632779,100800.0,100790.0,0.17322]
[1762279454599,0.00814551,100800.0,100790.0,0.17322]
[1762279454835,0.00014551,100800.0,100790.0,0.21842]
[1762279455051,0.00014551,100800.0,100790.0,0.79386331]
[1762279455491,0.00014551,100800.0,100790.0,0.74857405]
[1762279455699,0.02107173,100830.0,100790.0,0.80377404]
[1762279455910,3.01080682,100840.0,100820.0,0.06394]
[1762279456109,3.01080682,100840.0,100790.0,0.028397]
[1762279456110,3.34,100820.0,100790.0,0.10967701]
[1762279456317,0.44359003,100800.0,100790.0,0.01839701]
[1762279456528,3.719635,100800.0,100790.0,0.01839701]
[1762279456762,3.719635,100800.0,100790.0,0.01639701]
[1762279456763,3.76356497,100800.0,100790.0,0.01639701]
[1762279456983,3.80861538,100800.0,100790.0,0.01639701]
[1762279457184,3.78756497,100800.0,100790.0,0.01639701]
[1762279457590,3.81559287,100800.0,100790.0,0.01639701]
[1762279457822,3.80859287,100800.0,100790.0,0.01639701]
[1762279458030,3.8344629,100800.0,100790.0,0.01639701]
[1762279458243,3.62448469,100790.0,100780.0,0.02]
[1762279458476,3.76939186,100790.0,100780.0,0.02]
[1762279458679,3.71952183,100790.0,100780.0,0.02277565]
[1762279458886,3.76939186,100790.0,100780.0,0.02277565]
[1762279459719,3.81487186,100790.0,100780.0,0.02277565]
[1762279460340,3.84586136,100790.0,100780.0,0.02277565]
[1762279460546,3.84286137,100790.0,100780.0,0.02277565]
[1762279460740,3.84586136,100790.0,100780.0,0.02277565]
[1762279460942,3.9209729,100790.0,100780.0,0.02277565]
[1762279461203,3.9319729,100790.0,100780.0,0.02277565]
[1762279461476,3.84686137,100790.0,100780.0,0.02277565]
[1762279461681,3.85686136,100790.0,100780.0,0.02277565]
[1762279461906,3.82138135,100790.0,100780.0,0.02277565]
[1762279462114,3.86702135,100790.0,100780.0,0.02277565]
[1762279462696,3.94327128,100790.0,100780.0,0.02277565]
[1762279462895,3.60832208,100780.0,100770.0,0.025]
[1762279463100,3.76619159,100780.0,100770.0,0.025]
[1762279463316,3.73250386,100780.0,100770.0,0.025]
[1762279463486,3.82809389,100780.0,100770.0,0.025]
[1762279464271,3.84109389,100780.0,100770.0,0.025]
[1762279464606,3.84109389,100780.0,100770.0,0.01982647]
[1762279465024,3.79191161,100780.0,100770.0,0.01982647]
[1762279465243,3.78614369,100780.0,100770.0,0.01982647]
[1762279465480,3.84601371,100780.0,100770.0,0.01982647]
[1762279465694,3.85501371,100780.0,100770.0,0.01982647]
[1762279466118,3.84501372,100780.0,100770.0,0.01982647]
[1762279466674,3.07877937,100780.0,100770.0,0.01982647]
[1762279466874,3.19824986,100780.0,100770.0,0.01982647]
[1762279467048,3.38987003,100770.0,100760.0,0.58177229]
[1762279467285,3.39778986,100770.0,100760.0,0.58177229]
[1762279468145,3.54524986,100770.0,100760.0,0.58177229]
[1762279468343,3.57351231,100770.0,100760.0,0.58177229]
[1762279468753,3.77198407,100770.0,100760.0,0.58177229]
[1762279468965,3.80079413,100770.0,100760.0,0.58177229]
[1762279469106,3.80079413,100770.0,100760.0,0.58227733]
[1762279469508,3.7966841,100770.0,100760.0,0.58227733]
[1762279469708,3.80968408,100770.0,100760.0,0.58227733]
[1762279469925,3.85955411,100770.0,100760.0,0.58227733]
[1762279470175,3.83268409,100770.0,100760.0,0.58227733]
[1762279470390,3.84268408,100770.0,100760.0,0.58227733]
[1762279470612,3.83268409,100770.0,100760.0,0.58227733]
[1762279470814,3.84268408,100770.0,100760.0,0.58227733]
[1762279471017,3.83268409,100770.0,100760.0,0.58227733]
[1762279471161,3.78692409,100770.0,100760.0,0.58227733]
[1762279471389,3.83268409,100770.0,100760.0,0.58231733]
[1762279471543,3.21903006,100770.0,100760.0,0.58231733]
[1762279471772,3.41750182,100770.0,100760.0,0.58231733]
[1762279471971,3.51327006,100770.0,100760.0,0.58235733]
[1762279472210,3.75754182,100770.0,100760.0,0.58239733]
[1762279472422,3.7937241,100770.0,100760.0,0.58239733]
[1762279472623,3.80372409,100770.0,100760.0,0.58243733]
[1762279473096,3.81872409,100770.0,100760.0,0.58243733]
[1762279473653,3.81360983,100770.0,100760.0,0.58247733]
[1762279474051,3.79360985,100770.0,100760.0,0.58247733]
[1762279474273,3.76842757,100770.0,100760.0,0.58247733]
[1762279474481,3.4632976,100770.0,100760.0,0.58247733]
[1762279475118,3.61782584,100770.0,100760.0,0.58247733]
[1762279475251,3.61782584,100770.0,100760.0,0.58147733]
[1762279475645,3.8162976,100770.0,100760.0,0.58047733]
[1762279475842,3.8162976,100770.0,100760.0,0.57947733]
[1762279475843,3.76642757,100770.0,100760.0,0.57947733]
[1762279476048,3.83947988,100770.0,100760.0,0.57947733]
[1762279476334,3.83947988,100770.0,100760.0,0.57847733]
[1762279476564,3.85047988,100770.0,100760.0,0.57747733]
[1762279476836,3.65200812,100770.0,100760.0,0.57647733]
[1762279477065,3.54183584,100770.0,100760.0,0.57647733]
[1762279477331,3.13536584,100770.0,100760.0,0.64103733]
[1762279477548,3.08956584,100770.0,100760.0,0.57547733]
[1762279477773,0.08968009,100770.0,100760.0,0.57447733]